Cogmind - Beta 11 X6 @@@ ROGUE MODE // 2021.07.19 @ 20:36:42 Player: Amy! Result: Destroyed by G-47 Trooper with Particle Gun Performance ------------- Evolutions (2) 1000 Regions Visited (8) 1600 Robots Destroyed (32) 160 Value Destroyed (1165) 1165 Prototype IDs (26) 520 Alien Tech Used (0) 0 Bonus (533) 533 TOTAL SCORE: 4978 Bonus ------- High Alert Combat Kills 33 Entered Garrisons 200 Aligned with FarCom 300 Cogmind --------- Core Integrity 0/550 Matter 291/300 Energy 139/150 System Corruption 5% Temperature Cool (51) Movement Rolling (115) Ox2 Location -8/Garrison Parts ------- > --- POWER (1) -------- Micro Nuclear Core > --- PROPULSION (2) --- Wheel Armored Wheel > --- UTILITY (6) ------ Improved Heat Sink High-capacity Storage Unit Improved Terrain Scan Processor Transport Network Coupler Layered Light Armor Plating Layered Light Armor Plating > --- WEAPON (2) ------- Particle Gun Heavy Assault Rifle > --- INVENTORY (20) --- Micro Nuclear Core Micro Nuclear Core Light Treads Medium Treads Medium Treads Improved Titanium Leg Improved Titanium Leg Heat Sink Heat Sink Improved Heat Sink Superbattery (1500) Structural Scanner Terrain Scanner Relay Coupler [NC] (32) Heavy Assault Cannon Improved Datajack Maul Katana Scythe Peak State ------------ > --- POWER ------------ Micro Nuclear Core > --- PROPULSION ------- Medium Treads Medium Treads > --- UTILITY ---------- Improved Heat Sink High-capacity Storage Unit Improved Terrain Scan Processor Transport Network Coupler Layered Light Armor Plating Layered Light Armor Plating > --- WEAPON ----------- Particle Gun EM Pulse Cannon > --- INVENTORY -------- Micro Nuclear Core Micro Nuclear Core Micro Nuclear Core Medium Treads Medium Treads Improved Titanium Leg Improved Titanium Leg Wheel Armored Wheel Superbattery Structural Scanner Terrain Scanner Layered Light Armor Plating Layered Light Armor Plating Small Laser Heavy Assault Cannon Improved Datajack Maul Scythe [Rating: 39] Favorites ----------- Power Light Ion Engine Engine Light Ion Engine Power Core Micro Nuclear Core Propulsion Compact Wheel Treads Medium Treads Leg Aluminum Leg Wheel Compact Wheel Utility High-capacity Storage Unit Device Terrain Scanner Storage High-capacity Storage Unit Processor Improved Terrain Scan Processor Protection Layered Light Armor Plating Weapon Small Laser Energy Gun Small Laser Energy Cannon EM Pulse Cannon Ballistic Gun Heavy Assault Rifle Impact Weapon Maul Slashing Weapon Scythe Build | -11 -10 -10 -9 -9 -9 -8 -8 -8 ------- Run | Scr Mat Min Mat Min Exi Min Mat Gar Slots Evolved 4 | . . . 2 . . . 2 . Power . | . . . . . . . . . Propulsion . | . . . . . . . . . Utility 4 | . . . 2 . . . 2 . Weapon . | . . . . . . . . . Parts Attached 68 | 6 7 2 11 1 1 1 14 25 Power 12 | 1 3 . 3 . . . 3 2 Engine 8 | 1 3 . 3 . . . 1 . Core 4 | . . . . . . . 2 2 Reactor . | . . . . . . . . . Propulsion 14 | 2 . . 1 . . . 5 6 Treads 6 | . . . . . . . 2 4 Leg 2 | . . . . . . . 2 . Wheel 6 | 2 . . 1 . . . 1 2 Hover . | . . . . . . . . . Flight . | . . . . . . . . . Utility 23 | 1 . 1 5 1 1 1 4 9 Device 12 | . . 1 4 . . . 3 4 Storage 3 | 1 . . 1 . 1 . . . Processor 3 | . . . . 1 . 1 1 . Hackware . | . . . . . . . . . Protection 5 | . . . . . . . . 5 Artifact . | . . . . . . . . . Weapon 19 | 2 4 1 2 . . . 2 8 Energy Gun 12 | 1 2 1 2 . . . 2 4 Energy Cannon 1 | . . . . . . . . 1 Ballistic Gun 4 | 1 2 . . . . . . 1 Ballistic Cannon . | . . . . . . . . . Launcher . | . . . . . . . . . Special Weapon . | . . . . . . . . . Impact Weapon 1 | . . . . . . . . 1 Slashing Weapon 1 | . . . . . . . . 1 Piercing Weapon . | . . . . . . . . . Special Melee Weapon . | . . . . . . . . . Unidentified Prototypes . | . . . . . . . . . Corrupted Parts 2 | . . . 1 . . . . 1 System Corruption 8 | . . . 3 . . . . 5 Parts Lost 22 | . . . 6 . . 1 6 9 Power 4 | . . . 2 . . . 2 . Propulsion 6 | . . . 1 . . . 3 2 Utility 5 | . . . 2 . . . . 3 Weapon 7 | . . . 1 . . 1 1 4 Highest Loss Streak 6 | . . . 5 . . 1 4 6 Average Slot Usage (%) 95 | . 85 97 85 99 100 100 92 97 Engine 6 | . 14 14 9 11 11 11 . . Core 4 | . . . . . . . 7 8 Treads 7 | . . . . . . . 12 16 Wheel 12 | . 28 28 17 22 22 22 1 . Device 18 | . . 11 24 22 22 22 27 10 Storage 10 | . 14 14 11 11 11 11 9 9 Processor 11 | . . . . 10 11 11 12 18 Protection 4 | . . . . . . . . 16 Energy Gun 16 | . 14 14 13 22 22 22 18 8 Ballistic Gun 2 | . 14 14 7 . . . . 4 Naked Turns . | . . . . . . . . . Heaviest Build 64 | 14 14 11 22 19 49 49 53 64 Greatest Support 56 | 26 26 26 32 32 32 32 56 56 Greatest Overweight (x) 5 | . . . 1 . 1 1 5 2 Average Overweight (x) . | . . . . . . 1 . . Largest Inventory Capacity 20 | 8 8 8 10 10 20 20 20 20 Average Capacity 16 | 7 8 8 9 10 11 20 20 20 Most Carried 20 | 4 7 8 10 10 10 10 20 20 Average Carried 12 | 2 4 7 9 9 9 10 15 19 Final Capacity 20 | 8 8 8 10 10 20 20 20 20 Final Carried 20 | 4 7 8 8 10 10 10 20 20 Class Distribution -------------------- 46% | Skirmisher 25% | Mutant 15% | Scavenger-Skirmisher 12% | Scavenger-Mutant Dominant Class ---------------- Mutant | -10/Materials Mutant | -10/Mines Mutant | -9/Materials Skirmisher | -9/Mines Skirmisher | -9/Exiles Skirmisher | -8/Mines Scavenger-Skirmisher | -8/Materials Scavenger-Mutant | -8/Garrison Resources | -11 -10 -10 -9 -9 -9 -8 -8 -8 ----------- Run | Scr Mat Min Mat Min Exi Min Mat Gar Matter Collected 943 | 216 30 16 154 92 . 56 81 298 Remotely . | . . . . . . . . . Salvage Created 1240 | . 47 . 343 43 . 42 166 599 Parts 71 | . 3 . 20 7 . 1 10 30 Haulers Intercepted 1 | . . . . . . . 1 . Recyclers Shooed . | . . . . . . . . . Parts Field Recycled . | . . . . . . . . . Retrieved Matter . | . . . . . . . . . Parts Self-Destructed . | . . . . . . . . . Prevented . | . . . . . . . . . Kills | -11 -10 -10 -9 -9 -9 -8 -8 -8 ------- Run | Scr Mat Min Mat Min Exi Min Mat Gar Combat Hostiles Destroyed 28 | . 3 . 6 3 . 1 2 13 Melee 3 | . . . . . . . . 3 Guns 19 | . 3 . 5 3 . 1 . 7 Cannons 2 | . . . . . . . . 2 AOE 2 | . . . 1 . . . . 1 Classes Destroyed 9 | . 1 . 3 . . 1 3 1 Worker 1 | . . . . . . . 1 . Builder 1 | . . . . . . . 1 . Hauler 1 | . . . . . . . 1 . Recycler 1 | . . . 1 . . . . . Swarmer 9 | . 3 . . 3 . . . 3 Grunt 13 | . . . 5 . . . 1 7 Duelist 1 | . . . . . . . . 1 Sentry 3 | . . . 1 . . . . 2 Hunter 2 | . . . . . . 1 1 . Best Kill Streak 7 | . 2 . 7 3 . 1 3 2 Combat Bots Only 6 | . 2 . 6 3 . 1 1 2 Max Kills in Single Turn 2 | . 1 . 2 1 . 1 2 1 Gunslinging . | . . . . . . . . . Exploded 1 | . . . 1 . . . . 1 Melee 1 | . . . . . . . . 1 Uniques/NPCs Destroyed . | . . . . . . . . . Combat | -11 -10 -10 -9 -9 -9 -8 -8 -8 -------- Run | Scr Mat Min Mat Min Exi Min Mat Gar Damage Taken 3427 | . 142 . 461 67 . 97 530 2130 Core 759 | . 9 . 149 18 . 27 127 429 Absorbed by Shields . | . . . . . . . . . Core Remaining (%) 82 | 100 . 96 . . . 51 . . Volleys Fired 112 | . 11 . 20 6 . 2 27 46 Largest 2 | . 2 . 2 2 . 2 2 2 Hottest 128 | . 70 . 96 96 . 96 96 128 Shots Fired 203 | . 22 . 36 12 . 4 46 83 Gun 187 | . 22 . 36 12 . 4 46 67 Cannon 16 | . . . . . . . . 16 Launcher . | . . . . . . . . . Special . | . . . . . . . . . Kinetic 36 | . 11 . 12 . . . . 13 Thermal 151 | . 11 . 24 12 . 4 46 54 Explosive . | . . . . . . . . . Electromagnetic 16 | . . . . . . . . 16 Robot Hit Streak 9 | . 5 . 7 5 . 5 9 9 Robot Miss Streak 4 | . 3 . 3 4 . . 3 3 Penetration Max . | . . . . . . . . . Secondary Targets 4 | . 1 . 1 1 . . . 1 Max Gunslinging Chain 1 | . 1 . 1 1 . . . 1 Shots Hit Robots 138 | . 12 . 23 4 . 4 28 67 Core Hits 59 | . 3 . 17 3 . 3 6 27 Critical Kills . | . . . . . . . . . Critical Parts Destroyed . | . . . . . . . . . Critical Strikes 6 | . 2 . . . . . 2 2 Burn 6 | . 2 . . . . . 2 2 Melee Attacks 20 | . . . . . . . . 20 Impact 1 | . . . . . . . . 1 Slashing 19 | . . . . . . . . 19 Piercing . | . . . . . . . . . Sneak Attacks . | . . . . . . . . . Combat Hostiles . | . . . . . . . . . Follow-up Attacks . | . . . . . . . . . Damage Inflicted 2341 | . 155 . 437 37 . 65 371 1276 Guns 1466 | . 155 . 253 37 . 49 370 602 Cannons 224 | . . . . . . . . 224 Explosions 228 | . . . 184 . . . . 44 Melee 398 | . . . . . . . . 398 Ramming 25 | . . . . . . 16 1 8 Kinetic 232 | . 66 . 78 . . . . 88 Thermal 1278 | . 89 . 175 37 . 49 370 558 Explosive . | . . . . . . . . . Electromagnetic 408 | . . . 184 . . . . 224 Impact . | . . . . . . . . . Slashing 398 | . . . . . . . . 398 Piercing . | . . . . . . . . . Highest Corruption 5 | . 1 1 3 3 3 4 . 5 Average Corruption 3 | . 1 1 3 3 3 3 . 5 Corruption Purged . | . . . . . . . . . Effects 48 | . 1 1 . 4 5 17 . 20 Message Errors 15 | . . . . 1 1 6 . 7 Matter Fused 11 | . . . . 3 2 3 . 3 Heat Flow Errors 5 | . . . . . 1 1 . 3 Energy Discharges 8 | . 1 . . . 1 4 . 2 Data Loss (minor) 7 | . . 1 . . . 3 . 3 Data Loss (major) 1 | . . . . . . . . 1 Misfires 1 | . . . . . . . . 1 Overload Shots . | . . . . . . . . . Overflow Damage 37 | . . . 5 . . . . 32 Projectiles 4 | . . . . . . . . 4 Explosions 33 | . . . 5 . . . . 28 Melee . | . . . . . . . . . Knockbacks . | . . . . . . . . . Impact . | . . . . . . . . . Kinetic . | . . . . . . . . . Secondary . | . . . . . . . . . Self-Inflicted Damage 88 | . . . 42 . . 8 . 38 Shots 2 | . . . 1 . . . . 1 Rammed 6 | . . . . . . 1 2 3 Targets Rammed 6 | . . . . . . 1 2 3 Kicked . | . . . . . . . . . Crushed . | . . . . . . . . . Highest Temperature 548 | . 74 . 187 162 120 117 12 548 Average Temperature 71 | . 32 . 74 81 62 41 6 84 Received Heat Transfer 1152 | . . . 207 . . 36 90 819 Effects 11 | . . . . . . . . 11 Shutdowns 1 | . . . . . . . . 1 Matter Decay 1 | . . . . . . . . 1 Damage (minor) 1 | . . . . . . . . 1 Damage (major) 8 | . . . . . . . . 8 Siege Activations . | . . . . . . . . . Robots Corrupted . | . . . . . . . . . Combat Hostiles . | . . . . . . . . . Parts Fried . | . . . . . . . . . Impact Corruptions . | . . . . . . . . . Robots Melted 2 | . . . . . . . 2 . Combat Hostiles 2 | . . . . . . . 2 . Parts Melted 5 | . 1 . 2 . . . 1 1 Heat Transferred 3389 | . 407 . 433 87 . 124 1054 1284 Parts Sabotaged . | . . . . . . . . . Parts Stolen . | . . . . . . . . . Parts Stripped . | . . . . . . . . . Power Chain Reactions 1 | . . . . . . . . 1 Missiles Intercepted . | . . . . . . . . . Alert | -11 -10 -10 -9 -9 -9 -8 -8 -8 ------- Run | Scr Mat Min Mat Min Exi Min Mat Gar Peak Influence 609 | . 135 52 168 135 . 30 90 609 Initial 65 | . . 52 20 65 . . . . Average 110 | . 43 52 73 82 . 1 31 300 Maximum Alert Level 2 | . . . . . . . . 2 Low Security (%) 81 | 100 100 100 100 100 . 100 100 34 Level 1 12 | . . . . . . . . 43 Level 2 6 | . . . . . . . . 21 Level 3 . | . . . . . . . . . Level 4 . | . . . . . . . . . Level 5 . | . . . . . . . . . High Security . | . . . . . . . . . Max Security . | . . . . . . . . . Squads Dispatched 5 | . 1 . 1 . . . 3 . Investigation 1 | . 1 . . . . . . . Extermination . | . . . . . . . . . Reinforcement 4 | . . . 1 . . . 3 . Assault . | . . . . . . . . . Garrison . | . . . . . . . . . Intercept . | . . . . . . . . . Construction Impeded 1 | . . . . . . . 1 . Haulers Reinforced . | . . . . . . . . . Active Scanning Responses . | . . . . . . . . . Cargo Convoy Interrupts . | . . . . . . . . . Stealth | -11 -10 -10 -9 -9 -9 -8 -8 -8 --------- Run | Scr Mat Min Mat Min Exi Min Mat Gar Distress Signals 2 | . 1 . 1 . . . . . Communications Jammed . | . . . . . . . . . Distress Signals . | . . . . . . . . . Times Spotted 61 | . 7 2 9 3 . 7 8 25 Peak Tracking Total 8 | . 5 2 7 3 . 6 3 8 Tactical Retreats 5 | . 1 . . . . . . 4 Traps | -11 -10 -10 -9 -9 -9 -8 -8 -8 ------- Run | Scr Mat Min Mat Min Exi Min Mat Gar Traps Triggered 6 | . 4 . 1 . . . . 1 Indirectly . | . . . . . . . . . Trap Hack Attempts . | . . . . . . . . . Triggered . | . . . . . . . . . Disarmed . | . . . . . . . . . Reprogrammed . | . . . . . . . . . Reused . | . . . . . . . . . Traps Extracted . | . . . . . . . . . Installed . | . . . . . . . . . Triggered . | . . . . . . . . . Machines | -11 -10 -10 -9 -9 -9 -8 -8 -8 ---------- Run | Scr Mat Min Mat Min Exi Min Mat Gar Machines Disabled 2 | . . . 1 . . . . 1 Max in Single Turn 1 | . . . 1 . . . . 1 Garrison Relay 1 | . . . . . . . . 1 Machines Sabotaged . | . . . . . . . . . Garrisons Compromised . | . . . . . . . . . Overloaded Fab Kills . | . . . . . . . . . Fab Network Shutdowns . | . . . . . . . . . Hacking | -11 -10 -10 -9 -9 -9 -8 -8 -8 --------- Run | Scr Mat Min Mat Min Exi Min Mat Gar Machines Accessed 9 | . 4 . 1 . 1 1 2 . Terminals 5 | . 3 . 1 . . 1 . . Fabricators . | . . . . . . . . . Repair Stations . | . . . . . . . . . Recycling Units 2 | . 1 . . . . . 1 . Scanalyzers . | . . . . . . . . . Garrison Access 1 | . . . . . . . 1 . Total Hacks 19 | . 10 . 2 . 1 2 4 . Successful 10 | . 5 . 1 . 1 . 3 . Failed 9 | . 5 . 1 . . 2 1 . Catastrophic 3 | . 1 . 1 . . 1 . . Database Lockouts . | . . . . . . . . . Manual 11 | . 6 . 2 . 1 2 . . Terminals 13 | . 9 . 2 . . 2 . . Fabricators . | . . . . . . . . . Repair Stations . | . . . . . . . . . Recycling Units 4 | . 1 . . . . . 3 . Scanalyzers . | . . . . . . . . . Garrison Access 1 | . . . . . . . 1 . Terminal Hacks 6 | . 4 . 1 . 1 . . . Part Schematic 1 | . 1 . . . . . . . Prototype ID Bank 2 | . 2 . . . . . . . Branch Access Points 2 | . 1 . 1 . . . . . EX-Prototype ID Bank 1 | . . . . . 1 . . . Fabricator Hacks . | . . . . . . . . . Repair Station Hacks . | . . . . . . . . . Recycling Unit Hacks 3 | . 1 . . . . . 2 . Report Inventory 2 | . 1 . . . . . 1 . Retrieve Components 1 | . . . . . . . 1 . Scanalyzer . | . . . . . . . . . Garrison Access Hacks 1 | . . . . . . . 1 . Unlock Access 1 | . . . . . . . 1 . Unauthorized Hacks . | . . . . . . . . . Terminals . | . . . . . . . . . Fabricators . | . . . . . . . . . Repair Stations . | . . . . . . . . . Recycling Units . | . . . . . . . . . Scanalyzers . | . . . . . . . . . Garrison Access . | . . . . . . . . . Data Cores Recovered . | . . . . . . . . . Used . | . . . . . . . . . Hacking Detections 6 | . 3 . 1 . . 1 1 . Full Trace Events 1 | . . . . . . . 1 . Feedback Events . | . . . . . . . . . Feedback Blocked . | . . . . . . . . . Robot Schematics Acquired . | . . . . . . . . . Robots Built . | . . . . . . . . . Matter . | . . . . . . . . . Time . | . . . . . . . . . Total Robot Build Rating . | . . . . . . . . . Part Schematics Acquired 1 | . 1 . . . . . . . Parts Built . | . . . . . . . . . Matter . | . . . . . . . . . Time . | . . . . . . . . . Total Part Build Rating . | . . . . . . . . . Parts Repaired . | . . . . . . . . . Time . | . . . . . . . . . Parts Recycled . | . . . . . . . . . Recycled Matter . | . . . . . . . . . Retrieved Matter . | . . . . . . . . . Retrieved Components 3 | . . . . . . . 3 . Parts Scanalyzed . | . . . . . . . . . Part Schematics Acquired . | . . . . . . . . . Parts Damaged . | . . . . . . . . . Bothacking | -11 -10 -10 -9 -9 -9 -8 -8 -8 ------------ Run | Scr Mat Min Mat Min Exi Min Mat Gar Used RIF Installer . | . . . . . . . . . Robots Hacked . | . . . . . . . . . Non-combat . | . . . . . . . . . Combat . | . . . . . . . . . Robot Hacks Applied . | . . . . . . . . . Relay Couplers Released 5 | . . . . . . . . 5 Machine Destruction 5 | . . . . . . . . 5 Robots Rewired . | . . . . . . . . . Allies Hacked . | . . . . . . . . . Hacks Repelled . | . . . . . . . . . Allies | -11 -10 -10 -9 -9 -9 -8 -8 -8 -------- Run | Scr Mat Min Mat Min Exi Min Mat Gar Total Allies . | . . . . . . . . . Largest Group . | . . . . . . . . . Highest-Rated Group . | . . . . . . . . . Highest-Rated Ally . | . . . . . . . . . Total Orders . | . . . . . . . . . Ally Attacks . | . . . . . . . . . Total Damage . | . . . . . . . . . Kills . | . . . . . . . . . Allies Corrupted . | . . . . . . . . . Allies Melted . | . . . . . . . . . Intel | -11 -10 -10 -9 -9 -9 -8 -8 -8 ------- Run | Scr Mat Min Mat Min Exi Min Mat Gar Robot Analysis Total . | . . . . . . . . . Derelict Logs Recovered 2 | . . 1 . 1 . . . . Drone Launches . | . . . . . . . . . Drone Recoveries . | . . . . . . . . . Exploration | -11 -10 -10 -9 -9 -9 -8 -8 -8 ------------- Run | Scr Mat Min Mat Min Exi Min Mat Gar Turns Passed 4250 | 52 245 161 208 406 233 932 858 1155 Spaces Moved 2596 | 45 220 176 141 373 227 627 416 371 Core 3 | 3 . . . . . . . . Treads 685 | . . . . . . . 342 343 Legs 21 | . . . . . . . 21 . Wheels 1887 | 42 220 176 141 373 227 627 53 28 Hover . | . . . . . . . . . Flight . | . . . . . . . . . Fastest Speed 50 | 50 90 90 90 100 100 115 115 115 Average Speed 132 | 87 90 90 95 100 101 115 169 239 Slowest Speed 520 | 90 90 90 115 100 115 115 520 360 Overloaded Moves . | . . . . . . . . . Propulsion Burnouts . | . . . . . . . . . Robots Hopped . | . . . . . . . . . Cave-ins Triggered . | . . . . . . . . . Exploration Rate (%) 40 | 3 50 35 14 75 61 73 28 25 Regions Visited 8 Branch Regions 4 Pre-discovered Areas 1 | . . 1 . . . . . . Known Exits Taken 3 | . 1 . 1 . . . 1 . Unknown Exits Taken 5 | 1 . 1 . 1 1 1 . . Scrap Searched 4 | . . 1 . 2 . 1 . . Spaces Dug . | . . . . . . . . . Terrain Destroyed 4 | . . . . . . . . 4 Melee . | . . . . . . . . . Projectile . | . . . . . . . . . AOE 4 | . . . . . . . . 4 Terrain Rammed . | . . . . . . . . . Walls Destroyed . | . . . . . . . . . Machines Disabled . | . . . . . . . . . Actions | -11 -10 -10 -9 -9 -9 -8 -8 -8 --------- Run | Scr Mat Min Mat Min Exi Min Mat Gar Total 3155 | 54 241 177 180 395 230 833 528 517 Wait 293 | . 3 . . 10 . 203 36 41 Move 2589 | 44 219 175 140 372 226 626 416 371 Hop . | . . . . . . . . . Pick Up 39 | 4 1 . 4 3 1 . 20 6 Fast Attach 30 | 6 5 1 6 1 . . 7 4 Attach 18 | . . . 3 . . . 6 9 Detach 6 | . . . 1 1 . . 3 1 Swap 20 | . 2 1 2 . 1 1 1 12 Drop 22 | . . . 4 2 2 . 10 4 Fire 112 | . 11 . 20 6 . 2 27 46 Melee 20 | . . . . . . . . 20 Ram 1 | . . . . . . 1 . . Kick . | . . . . . . . . . Crush 5 | . . . . . . . 2 3 Escape Stasis . | . . . . . . . . . Rewire . | . . . . . . . . . Trap . | . . . . . . . . . Miscellaneous . | . . . . . . . . . Route ------- -11/Scrapyard -10/Materials (discovered 3 exits: *Mat / *Min x2) -10/Mines -9/Materials -9/Mines (discovered 2 exits: Mat / *Exi) -9/Exiles -8/Mines -8/Materials (discovered 3 exits: [*Fac] / [*Sto] / Gar) -8/Garrison History --------- Turn | Location | Event 24 | -11/Scrapyard | Discovered new exit (range 15) 53 | -11/Scrapyard | Entered Materials 193 | -10/Materials | Discovered new exit (range 15) 194 | -10/Materials | Identified exit to Mines 298 | -10/Materials | Entered Mines 299 | -10/Mines | Learned location of Storage (-8) 306 | -10/Mines | Build established: Mutant 356 | -10/Mines | Learned Materials interactive machine intel 373 | -10/Mines | Discovered new exit (range 9) 459 | -10/Mines | Entered Materials 459 | -9/Materials | Evolved 2 slots: Utility x2 460 | -9/Materials | Loaded intel: 18 interactive machine locations 534 | -9/Materials | Identified exit to Mines 646 | -9/Materials | Lost 5 parts (2p2u1w) 667 | -9/Materials | Entered Mines 703 | -9/Mines | Learned Materials stockpile data 841 | -9/Mines | Found a hidden stash of uninstalled traps 894 | -9/Mines | Discovered new exit (range 13) 965 | -9/Mines | Build established: Skirmisher 1068 | -9/Mines | Deemed a non-threat by the Exiles lab entrance 1068 | -9/Mines | Discovered new exit (range 6) 1073 | -9/Mines | Entered Exiles 1097 | -9/Exiles | Met 8R-AWN 1114 | -9/Exiles | Met EX-HEX 1141 | -9/Exiles | Met EX-BIN 1154 | -9/Exiles | Aligned with FarCom system 1155 | -9/Exiles | Given EX-Vault access code 1178 | -9/Exiles | Opened EX-Vault 1191 | -9/Exiles | Found Superbattery 1211 | -9/Exiles | Warned to stay clear of 0b10 Research branches 1221 | -9/Exiles | Exiles lab attacked by MAIN.C 1297 | -9/Exiles | Discovered new exit (range 10) 1306 | -9/Exiles | Left Exiles lab with Superbattery 1306 | -9/Exiles | Entered Mines 2169 | -8/Mines | Discovered new exit (range 13) 2238 | -8/Mines | Entered Materials 2238 | -8/Materials | Evolved 2 slots: Utility x2 2313 | -8/Materials | Lost 4 parts (1p2n1w) 2361 | -8/Materials | Lost 3 parts (1p1n1w) 2720 | -8/Materials | Build established: Scavenger-Skirmisher 2850 | -8/Materials | Discovered new exit (range 14) 3069 | -8/Materials | Discovered new exit (range 6) 3096 | -8/Materials | Identified exit to Garrison 3096 | -8/Materials | Entered Garrison 3216 | -8/Garrison | Triggered checkpoint 3352 | -8/Garrison | Garrison Relay disabled 3513 | -8/Garrison | Core integrity fell below 50% 3573 | -8/Garrison | Build established: Mutant 3673 | -8/Garrison | Core integrity fell below 20% 3691 | -8/Garrison | Lost 6 parts (2n3u1w) 4026 | -8/Garrison | Build established: Scavenger-Mutant 4251 | -8/Garrison | Destroyed by G-47 Trooper with Particle Gun Last Messages --------------- 03919_ PJTO8E|NU>MWWJQK0MUQR4 03988_ System corrupted: Heat flow error (+154). 04000_ ALERT: Garrison interior compromised. 04017_ Acquired 6 matter. 04034_ System corrupted: Matter fused (-8). 04060_ AK>JVIWOVZ UVYN3CTJFBXFFGQ/% 04110_ Critical hit (Burn: +37). 04112_ G-47 Trooper misfires. 04112_ Critical hit (Burn: +37). 04122_ System corrupted: Component data lost. 04151_ G-47 Trooper destroyed. 04154_ System corrupted: Component data lost. 04159_ Acquired 20 matter. 04189_ VMXSVGZCU3KTKZ:HLQM7MJZ1C=UN